No of Transactions,Dept_Family,Entity_Name,Cert Date,Supplier Name,Reference,Gross Amt,Group/Department,Type of Expenditure - Subjective Codes
1,DCMS,Historic England,29/03/2023,AE Facilities Management Limited,0042000730,"16,231.69",Corporate Services-Facilities Management,Maintenance
2,DCMS,Historic England,29/03/2023,AE Facilities Management Limited,0042000730,"17,658.24",Corporate Services-Facilities Management,Maintenance
3,DCMS,Historic England,29/03/2023,AE Facilities Management Limited,0042000730,"1,562.66",Corporate Services-Facilities Management,Maintenance
4,DCMS,Historic England,29/03/2023,AE Facilities Management Limited,0042000730,"10,251.01",Corporate Services-Facilities Management,Office Cleaning
5,DCMS,Historic England,29/03/2023,AE Facilities Management Limited,0042000730,"9,432.19",Corporate Services-Facilities Management,Security
6,DCMS,Historic England,31/03/2023,AE Facilities Management Limited,0042001628,"16,231.69",Corporate Services-Facilities Management,Maintenance
7,DCMS,Historic England,31/03/2023,AE Facilities Management Limited,0042001628,"17,658.24",Corporate Services-Facilities Management,Maintenance
8,DCMS,Historic England,31/03/2023,AE Facilities Management Limited,0042001628,"1,562.66",Corporate Services-Facilities Management,Maintenance
9,DCMS,Historic England,31/03/2023,AE Facilities Management Limited,0042001628,"10,251.01",Corporate Services-Facilities Management,Office Cleaning
10,DCMS,Historic England,31/03/2023,AE Facilities Management Limited,0042001628,"9,432.19",Corporate Services-Facilities Management,Security
11,DCMS,Historic England,30/03/2023,Archaeology Data Service,0042000990,"33,975.55",Policy & Evidence-National Specialist Services,IRO Research Grants
12,DCMS,Historic England,30/03/2023,Barrow Borough Council,0083002013,"30,000.00",Public Engagement-High Str (HAZ) - Public Engag,Grants Other Grants
13,DCMS,Historic England,28/03/2023,Beavers Arts Ltd,0083002004,"33,912.00",Public Engagement-High Str (HAZ) - Public Engag,Grants Other Grants
14,DCMS,Historic England,24/03/2023,Bedfordshire Rural Communities Charity,0083001996,"55,750.00",Public Engagement-High Str (HAZ) - Public Engag,Grants Other Grants
15,DCMS,Historic England,27/03/2023,Bluesource Information Limited,0042000685,"30,096.00",Corporate Services-IMT,Hosting
16,DCMS,Historic England,17/03/2023,"BNP Paribas Real Estate, Rent / Services",0042001032,"278,236.75",Governance & Legal-Office Estate,Rent Payable (Building)
17,DCMS,Historic England,17/03/2023,"BNP Paribas Real Estate, Rent / Services",0042001034,"114,453.58",Governance & Legal-Office Estate,Building Service Charges
18,DCMS,Historic England,10/03/2023,Bursledon Brickworks Museum Trust,0082006299,"62,793.00",Regions Group-London & South East - RD,Grants Historic Buildings
19,DCMS,Historic England,17/03/2023,Bursledon Brickworks Museum Trust,0082006331,"48,142.00",Regions Group-London & South East - RD,Grants Historic Buildings
20,DCMS,Historic England,31/03/2023,Bursledon Brickworks Museum Trust,0082006389,"34,834.00",Regions Group-London & South East - RD,Grants Historic Buildings
21,DCMS,Historic England,22/03/2023,Capita IB Solutions Ltd,0042000652,"29,016.00",Corporate Services-Finance & Procurement Dept,Software Maintenance
22,DCMS,Historic England,31/03/2023,CDW UK,0042000961,"47,602.82",Corporate Services-IMT,WIP Professional Works Advice
23,DCMS,Historic England,30/03/2023,CDW UK,0042000998,"136,762.18",Corporate Services-IMT,WIP Professional Works Advice
24,DCMS,Historic England,29/03/2023,CDW UK,0042001075,"52,343.76",Corporate Services-IMT,IMT Equipment <10k
25,DCMS,Historic England,29/03/2023,CDW UK,0042001075,"2,346.14",Corporate Services-IMT,IMT Equipment <10k
26,DCMS,Historic England,29/03/2023,CDW UK,0042001075,701.82,Corporate Services-IMT,IMT Equipment <10k
27,DCMS,Historic England,15/03/2023,Charterhouse Coventry Preservation Trust,0082006309,"54,000.00",Regions Group-Midlands - RD,Grants Historic Buildings
28,DCMS,Historic England,15/03/2023,Charterhouse Coventry Preservation Trust,0082006324,"39,359.00",Regions Group-Midlands - RD,Grants Historic Buildings
29,DCMS,Historic England,24/03/2023,Cheshire West & Chester Council,0083001997,"28,800.00",Public Engagement-High Str (HAZ) - Public Engag,Grants Other Grants
30,DCMS,Historic England,27/03/2023,Clear Channel UK Ltd,0042001041,"40,000.00",Public Engagement-Content & Marketing,Creative Production
31,DCMS,Historic England,15/03/2023,Cleveland Pools Trust,0082006305,"53,685.00",Regions Group-South West - RD,Grants Historic Buildings
32,DCMS,Historic England,31/03/2023,COPTRZ,0042001523,"59,863.60",Policy & Evidence-National Specialist Services,Plant & Equipment > 10k
33,DCMS,Historic England,15/03/2023,Council British Arch York,0081006508,"35,000.00",Business Improvement-Grants,Grants Historic Environment
34,DCMS,Historic England,29/03/2023,Council British Arch York,0081006593,"30,000.00",Business Improvement-Grants,Grants Historic Environment
35,DCMS,Historic England,23/03/2023,Croft Building and Conservation Ltd,0042001074,"269,179.20",Shrewsbury Flax Mill Maltings-Shrewsbury Flax Mill Maltings,Works (Non Office)
36,DCMS,Historic England,24/03/2023,Croft Building and Conservation Ltd,0042001181,"40,768.28",Shrewsbury Flax Mill Maltings-Shrewsbury Flax Mill Maltings,Works (Non Office)
37,DCMS,Historic England,24/03/2023,Croft Building and Conservation Ltd,0042001182,"27,600.00",Shrewsbury Flax Mill Maltings-Shrewsbury Flax Mill Maltings,Works (Non Office)
38,DCMS,Historic England,15/03/2023,Culture Weston,0083001976,"35,907.00",Public Engagement-High Str (HAZ) - Public Engag,Grants Other Grants
39,DCMS,Historic England,27/03/2023,Darlington Borough Council,0090516584,"25,082.00",Regions Group-North East & Yorkshire - RD,Grants Capacity Building Grants
40,DCMS,Historic England,28/03/2023,"The Church of the Immaculate Conception, Higher Church Street,
Barnstaple",0082006365,"39,366.00",Regions Group-South West - RD,Grants Historic Buildings
41,DCMS,Historic England,06/03/2023,Dudley Metropolitan Borough Council,0083001966,"28,200.00",Public Engagement-High Str (HAZ) - Public Engag,Grants Other Grants
42,DCMS,Historic England,30/03/2023,Dunstable Town Council,0082006368,"159,187.00",Regions Group-East - RD,Grants Historic Buildings
43,DCMS,Historic England,22/03/2023,Durham County Council,0090516565,"51,656.00",Regions Group-North East & Yorkshire - RD,Grants Area
44,DCMS,Historic England,31/03/2023,EDF  ,0030001052,"37,995.12",Corporate Services-Facilities Management,Electricity
45,DCMS,Historic England,30/03/2023,Electron-X Ltd,0042001503,"28,392.00",Policy & Evidence-National Specialist Services,Plant & Equipment > 10k
46,DCMS,Historic England,14/03/2023,"Bishop Woodford House, Barton Road, Ely",0090516547,"25,208.00",Regions Group-East - RD,Grants Capacity Building Grants
47,DCMS,Historic England,29/03/2023,Emergency Exit Arts Ltd,0083002010,"44,694.00",Public Engagement-High Str (HAZ) - Public Engag,Grants Other Grants
48,DCMS,Historic England,02/03/2023,Feilden Clegg Bradley Studios LLP,0042000626,"39,145.80",Shrewsbury Flax Mill Maltings-Shrewsbury Flax Mill Maltings,Bought in Advice
49,DCMS,Historic England,06/03/2023,Fleetwood Museum Trust,0083001967,"30,000.00",Public Engagement-High Str (HAZ) - Public Engag,Grants Other Grants
50,DCMS,Historic England,14/03/2023,Gloucester City Council,0083001973,"30,000.00",Public Engagement-High Str (HAZ) - Public Engag,Grants Other Grants
51,DCMS,Historic England,30/03/2023,Gosport Borough Council,0083002012,"30,534.00",Public Engagement-High Str (HAZ) - Public Engag,Grants Other Grants
52,DCMS,Historic England,31/03/2023,Gosport Borough Council,0083002021,"30,534.00",Public Engagement-High Str (HAZ) - Public Engag,Grants Other Grants
53,DCMS,Historic England,31/03/2023,Government Internal Audit Agency,0042001629,"51,841.50",Governance & Legal-Internal Audit,Bought in Advice
54,DCMS,Historic England,22/03/2023,Government Property Agency,0042000985,"59,062.50",Governance & Legal-Office Estate,Rent Payable (Building)
55,DCMS,Historic England,22/03/2023,Government Property Agency,0042000985,"3,772.50",Governance & Legal-Office Estate,Rent Payable (Building)
56,DCMS,Historic England,30/03/2023,Greenhatch Group Ltd,0042001570,"30,270.00",Governance & Legal-Office Estate,Bought in Advice
57,DCMS,Historic England,30/03/2023,GTT-EMA Ltd,0042000838,"44,022.00",Corporate Services-IMT,Network Contracts
58,DCMS,Historic England,03/03/2023,Harlow Property Management Ltd - Rent,0042000715,"70,752.56",Governance & Legal-Office Estate,Rent Payable (Building)
59,DCMS,Historic England,03/03/2023,Heart of Hastings CLT,0083001965,"86,917.00",Regions Group-High Str (HAZ) - Regions,Grants Area
60,DCMS,Historic England,31/03/2023,High Peak Borough Council,0083002020,"30,000.00",Public Engagement-High Str (HAZ) - Public Engag,Grants Other Grants
61,DCMS,Historic England,08/03/2023,Historic Chapels Trust,0081006474,"25,000.00",Business Improvement-Grants,Grants Capacity Building Grants
62,DCMS,Historic England,31/03/2023,Historic Coventry Trust,0083002019,"29,250.00",Public Engagement-High Str (HAZ) - Public Engag,Grants Other Grants
63,DCMS,Historic England,17/03/2023,Home Farm Partnership,0082006329,"48,140.00",Regions Group-London & South East - RD,Grants Historic Buildings
64,DCMS,Historic England,23/03/2023,Hull City Council,0083001990,"30,000.00",Public Engagement-High Str (HAZ) - Public Engag,Grants Other Grants
65,DCMS,Historic England,30/03/2023,Idox Software Ltd,0042001400,"30,000.00",Policy & Evidence-Policy & Evidence Centre,Bought in Advice
66,DCMS,Historic England,21/03/2023,Kent County Council,0081006540,"25,000.00",Business Improvement-Grants,Grants Historic Environment
67,DCMS,Historic England,06/03/2023,Kettering Borough Council,0083001970,"27,000.00",Public Engagement-High Str (HAZ) - Public Engag,Grants Other Grants
68,DCMS,Historic England,23/03/2023,Kirklees Council,0083001992,"27,000.00",Public Engagement-High Str (HAZ) - Public Engag,Grants Other Grants
69,DCMS,Historic England,22/03/2023,Kirklees Council,0090516571,"71,124.00",Regions Group-North East & Yorkshire - RD,Grants Area
70,DCMS,Historic England,22/03/2023,Kirklees Council,0090516571,"103,876.00",Regions Group-North East & Yorkshire - RD,Grants Area
71,DCMS,Historic England,29/03/2023,Korec,0042001454,"81,696.00",Policy & Evidence-National Specialist Services,Plant & Equipment > 10k
72,DCMS,Historic England,30/03/2023,Land Use Consultants Ltd,0042001244,"27,600.00",Business Improvement-Grants,Historic Env Commissions VAT
73,DCMS,Historic England,23/03/2023,Leeds City Council,0083001986,"35,932.00",Public Engagement-High Str (HAZ) - Public Engag,Grants Other Grants
74,DCMS,Historic England,31/03/2023,London Borough of Brent,0083002022,"30,000.00",Public Engagement-High Str (HAZ) - Public Engag,Grants Other Grants
75,DCMS,Historic England,17/03/2023,London Borough of Bromley,0082006328,"159,340.00",Regions Group-London & South East - RD,Grants Historic Buildings
76,DCMS,Historic England,17/03/2023,London Borough of Bromley,0082006335,"300,800.00",Regions Group-London & South East - RD,Grants Historic Buildings
77,DCMS,Historic England,06/03/2023,London Borough of Haringey,0083001969,"30,000.00",Public Engagement-High Str (HAZ) - Public Engag,Grants Other Grants
78,DCMS,Historic England,20/03/2023,London Borough of Haringey,0083001982,"155,918.00",Regions Group-High Str (HAZ) - Regions,Grants Area
79,DCMS,Historic England,03/03/2023,Medway Council,0083001964,"45,662.00",Regions Group-High Str (HAZ) - Regions,Grants Area
80,DCMS,Historic England,31/03/2023,Method4 Ltd,0042000983,"45,210.00",Corporate Services-IMT,WIP Systems Development
81,DCMS,Historic England,31/03/2023,Method4 Ltd,0042001131,"60,000.00",Public Engagement-Content & Marketing,WIP Systems Development
82,DCMS,Historic England,31/03/2023,Method4 Ltd,0042001131,"8,790.00",Corporate Services-IMT,WIP Systems Development
83,DCMS,Historic England,30/03/2023,Microsoft Ltd,0042000804,"478,334.60",Corporate Services-IMT,Software Maintenance
84,DCMS,Historic England,30/03/2023,Morecambe Winter Gardens Preservation,0082006383,"35,323.00",Regions Group-North West - RD,Grants Historic Buildings
85,DCMS,Historic England,01/03/2023,MPower Kernow C.I.C.,0082006288,"35,101.00",Regions Group-South West - RD,Grants Historic Buildings
86,DCMS,Historic England,15/03/2023,NavVis UK Ltd,0042000790,"71,802.00",Policy & Evidence-National Specialist Services,Plant & Equipment > 10k
87,DCMS,Historic England,03/03/2023,Newark and Sherwood District Council,0083001963,"27,000.00",Public Engagement-High Str (HAZ) - Public Engag,Grants Other Grants
88,DCMS,Historic England,03/03/2023,Nomensa Ltd,0042000706,"27,429.38",Public Engagement-Content & Marketing,System Developments <50k
89,DCMS,Historic England,30/03/2023,Nomensa Ltd,0042001303,"27,099.40",Public Engagement-Content & Marketing,System Developments <50k
90,DCMS,Historic England,10/03/2023,Norfolk Historic Buildings Trust,0082006302,"100,000.00",Regions Group-East - RD,Grants Historic Buildings
91,DCMS,Historic England,24/03/2023,North East Lincolnshire,0090516579,"196,717.87",Regions Group-Midlands - RD,Grants Area
92,DCMS,Historic England,23/03/2023,North Norfolk District Council,0083001988,"27,000.00",Public Engagement-High Str (HAZ) - Public Engag,Grants Other Grants
93,DCMS,Historic England,29/03/2023,North Somerset Council,0082006372,"25,000.00",Regions Group-South West - RD,Grants Historic Buildings
94,DCMS,Historic England,15/03/2023,Norwich Historic Churchs Trust,0082006314,"125,000.00",Regions Group-East - RD,Grants Historic Buildings
95,DCMS,Historic England,15/03/2023,Norwich Historic Churchs Trust,0082006315,"100,000.00",Regions Group-East - RD,Grants Historic Buildings
96,DCMS,Historic England,15/03/2023,Norwich Historic Churchs Trust,0082006327,"55,000.00",Regions Group-East - RD,Grants Historic Buildings
97,DCMS,Historic England,30/03/2023,Nottingham City Council,0090516593,"88,911.00",Regions Group-Midlands - RD,Grants Area
98,DCMS,Historic England,30/03/2023,Nottingham City Council,0090516593,"83,938.00",Regions Group-Midlands - RD,Grants Area
99,DCMS,Historic England,24/03/2023,Parochial Church Council of Hornblotton,0082006360,"34,014.00",Regions Group-South West - RD,Grants Historic Buildings
100,DCMS,Historic England,15/03/2023,Photoworks,0083001975,"27,100.00",Public Engagement-High Str (HAZ) - Public Engag,Technical & Legal Advice External Technical Advice
101,DCMS,Historic England,15/03/2023,Pritchard Architecture Ltd,0042000819,"22,200.00",Governance & Legal-Office Estate,Bought in Advice
102,DCMS,Historic England,15/03/2023,Pritchard Architecture Ltd,0042000819,"3,000.00",Governance & Legal-Office Estate,Bought in Advice
103,DCMS,Historic England,15/03/2023,Pritchard Architecture Ltd,0042000819,"6,000.00",Governance & Legal-Office Estate,WIP Refurbishment Works
104,DCMS,Historic England,30/03/2023,Pritchard Architecture Ltd,0042001473,"24,000.00",Governance & Legal-Office Estate,Bought in Advice
105,DCMS,Historic England,30/03/2023,Pritchard Architecture Ltd,0042001473,"3,600.00",Governance & Legal-Office Estate,Bought in Advice
106,DCMS,Historic England,30/03/2023,Pritchard Architecture Ltd,0042001473,"11,280.00",Governance & Legal-Office Estate,WIP Refurbishment Works
107,DCMS,Historic England,10/03/2023,Railway Paths Ltd,0082006300,"31,500.00",Regions Group-Midlands - RD,Grants Historic Buildings
108,DCMS,Historic England,15/03/2023,Ratcliffes,0042000817,"307,500.00",Governance & Legal-Office Estate,Rent Payable (Building)
109,DCMS,Historic England,24/03/2023,Reading Borough Council,0083001999,"37,503.00",Regions Group-High Str (HAZ) - Regions,Grants Area
110,DCMS,Historic England,28/03/2023,Reading Borough Council,0083002008,"25,500.00",Public Engagement-High Str (HAZ) - Public Engag,Grants Other Grants
111,DCMS,Historic England,24/03/2023,Rochdale Borough Council,0082006356,"182,296.00",Regions Group-North West - RD,Grants Historic Buildings
112,DCMS,Historic England,31/03/2023,Rochdale Borough Council,0082006393,"45,574.00",Regions Group-North West - RD,Grants Historic Buildings
113,DCMS,Historic England,30/03/2023,Rochdale Borough Council,0090516595,"65,777.00",Regions Group-North West - RD,Grants Area
114,DCMS,Historic England,24/03/2023,Rossendale Borough Council,0083001998,"27,000.00",Public Engagement-High Str (HAZ) - Public Engag,Grants Other Grants
115,DCMS,Historic England,20/03/2023,Royal Borough of Greenwich,0083001981,"94,865.00",Regions Group-High Str (HAZ) - Regions,Grants Area
116,DCMS,Historic England,28/03/2023,Sandwell Metropolitan Borough Council,0083002007,"26,700.00",Public Engagement-High Str (HAZ) - Public Engag,Grants Other Grants
117,DCMS,Historic England,02/03/2023,Savills (UK) Ltd,0042000562,"9,622.80",Governance & Legal-Office Estate,Building Service Charges
118,DCMS,Historic England,02/03/2023,Savills (UK) Ltd,0042000562,"61,416.90",Governance & Legal-Office Estate,Rent Payable (Building)
119,DCMS,Historic England,02/03/2023,Savills (UK) Ltd,0042000562,246.00,Governance & Legal-Office Estate,Building Service Charges
120,DCMS,Historic England,17/03/2023,Shropshire Council,0082006332,"30,375.00",Regions Group-Midlands - RD,Grants Historic Buildings
121,DCMS,Historic England,13/03/2023,Shropshire Council,0083001972,"27,000.00",Public Engagement-High Str (HAZ) - Public Engag,Grants Other Grants
122,DCMS,Historic England,21/03/2023,Skylarkeology,0081006558,"25,000.00",Business Improvement-Grants,Grants Historic Environment
123,DCMS,Historic England,30/03/2023,SoftwareOne UK Ltd,0042001232,"50,231.54",Corporate Services-IMT,Hosting
124,DCMS,Historic England,30/03/2023,Somerset County Council,0082006384,"147,000.00",Regions Group-South West - RD,Grants Historic Buildings
125,DCMS,Historic England,17/03/2023,Somerset West and Taunton Council,0082006334,"74,238.00",Regions Group-South West - RD,Grants Historic Buildings
126,DCMS,Historic England,17/03/2023,South Kesteven District Council,0083001977,"27,000.00",Public Engagement-High Str (HAZ) - Public Engag,Grants Other Grants
127,DCMS,Historic England,20/03/2023,Spilsby Sessions House Ltd,0082006339,"28,132.00",Regions Group-Midlands - RD,Grants Historic Buildings
128,DCMS,Historic England,27/03/2023,SQW Limited,0042001092,"26,370.00",Regions Group-Regions Group Centre,Bought in Research
129,DCMS,Historic England,14/03/2023,Stanley Arts,0083001974,"29,925.00",Public Engagement-High Str (HAZ) - Public Engag,Grants Other Grants
130,DCMS,Historic England,30/03/2023,Storm ID Ltd,0042001369,"43,980.00",Corporate Services-IMT,System Developments <50k
131,DCMS,Historic England,24/03/2023,Swaffham Town Council,0083002000,"33,750.00",Public Engagement-High Str (HAZ) - Public Engag,Grants Other Grants
132,DCMS,Historic England,17/03/2023,Swindon Borough Council,0082006333,"78,701.00",Regions Group-South West - RD,Grants Historic Buildings
133,DCMS,Historic England,21/03/2023,Swindon Borough Council,0082006353,"134,396.00",Regions Group-South West - RD,Grants Historic Buildings
134,DCMS,Historic England,02/03/2023,Swindon Borough Council,0090516533,"42,200.00",Regions Group-South West - RD,Grants Capacity Building Grants
135,DCMS,Historic England,10/03/2023,Tamara Landscape Partnership Scheme,0082006295,"29,270.00",Regions Group-South West - RD,Grants Historic Buildings
136,DCMS,Historic England,28/03/2023,Ten 10 Solutions Ltd,0042000938,"27,054.00",Business Improvement-Programmes,Bought in Advice
137,DCMS,Historic England,28/03/2023,Thanet District Council,0083002006,"29,000.00",Public Engagement-High Str (HAZ) - Public Engag,Grants Other Grants
138,DCMS,Historic England,21/03/2023,The Architectural Heritage Fund,0081006550,"33,393.88",Business Improvement-Grants,Grants Capacity Building Grants
139,DCMS,Historic England,28/03/2023,The Architectural Heritage Fund,0081006585,"403,326.00",Business Improvement-High Str (HAZ) - Busin Improv,Grants Historic Buildings
140,DCMS,Historic England,23/03/2023,The Chartered Institution of Building,0042001156,"12,000.00",Policy & Evidence-National Specialist Services,Bought in Research
141,DCMS,Historic England,23/03/2023,The Chartered Institution of Building,0042001156,"11,520.00",Policy & Evidence-National Specialist Services,Bought in Research
142,DCMS,Historic England,23/03/2023,The Chartered Institution of Building,0042001156,"11,880.00",Policy & Evidence-National Specialist Services,Bought in Research
143,DCMS,Historic England,30/03/2023,The Churches Conservation Trust,0042001493,"30,354.00",Public Engagement-Public Relations & Programmes,Programme Grants
144,DCMS,Historic England,24/03/2023,The Heritage Alliance,0081006573,"25,826.69",Business Improvement-Grants,Grants Capacity Building Grants
145,DCMS,Historic England,29/03/2023,The Heritage Alliance,0081006591,"30,897.00",Business Improvement-Grants,Grants Capacity Building Grants
146,DCMS,Historic England,06/03/2023,The Seachange Trust T/A Out There Arts,0083001968,"36,000.00",Public Engagement-High Str (HAZ) - Public Engag,Grants Other Grants
147,DCMS,Historic England,15/03/2023,Tolpuddle Old Chapel Trust,0082006304,"25,600.00",Regions Group-South West - RD,Grants Historic Buildings
148,DCMS,Historic England,27/03/2023,Travel Planet,0042001253,"26,299.25",Corporate Services-Corporate,Travel Planet Control
149,DCMS,Historic England,27/03/2023,Travel Planet,0042001253,"9,874.27",Corporate Services-Corporate,Travel Planet Control
150,DCMS,Historic England,17/03/2023,Tyldesley CIC,0083001978,"51,001.00",Public Engagement-High Str (HAZ) - Public Engag,Grants Other Grants
151,DCMS,Historic England,15/03/2023,Urban Splash Yorkshire Ltd,0082006306,"100,073.00",Regions Group-North East & Yorkshire - RD,Grants Historic Buildings
152,DCMS,Historic England,24/03/2023,Wakefield Council,0083001995,"27,000.00",Public Engagement-High Str (HAZ) - Public Engag,Grants Other Grants
153,DCMS,Historic England,21/03/2023,Wallingford Town Council,0082006348,"25,070.00",Regions Group-London & South East - RD,Grants Historic Buildings
154,DCMS,Historic England,15/03/2023,Wentworth Woodhouse Preservation Trust,0082006313,"62,500.00",Regions Group-North East & Yorkshire - RD,Grants Historic Buildings
155,DCMS,Historic England,15/03/2023,Wentworth Woodhouse Preservation Trust,0082006322,"200,000.00",Regions Group-North East & Yorkshire - RD,Grants Historic Buildings
156,DCMS,Historic England,22/03/2023,West Lancashire Borough Council,0083001983,"33,664.00",Regions Group-High Str (HAZ) - Regions,Grants Area
157,DCMS,Historic England,31/03/2023,West Midlands Historic Buildings Trust,0090516604,"52,504.80",Regions Group-Midlands - RD,Grants Capacity Building Grants
158,DCMS,Historic England,24/03/2023,Wigan Council,0083002001,"36,000.00",Public Engagement-High Str (HAZ) - Public Engag,Grants Other Grants
159,DCMS,Historic England,09/03/2023,Wiltshire Council,0090516535,"36,797.00",Regions Group-South West - RD,Grants Capacity Building Grants
160,DCMS,Historic England,31/03/2023,XMA Limited,0042001440,"-16,315.20",Corporate Services-IMT,Bought in Advice
